bitfinex-derivatives/quotes_SOLF0:USTF0_20250428
["timestamp","ask_amount","ask_price","bid_price","bid_amount"]
[1745829294561,11.33380148,151.4,151.34,23.32]
[1745829294860,6.6049,151.36,151.34,23.32]
[1745829295158,6.6049,151.36,151.31,38.55890148]
[1745829295350,6.6049,151.36,151.34,6.6053]
[1745829296959,6.6044,151.37,151.35,6.605]
[1745829297359,11.33380148,151.4,151.31,38.55890148]
[1745829297665,6.6047,151.36,151.34,6.6053]
[1745829297864,11.33380148,151.4,151.31,38.55890148]
[1745829298265,6.6044,151.37,151.35,6.605]
[1745829299866,11.33380148,151.4,151.34,6.6053]
[1745829299867,6.6046,151.36,151.34,6.6053]
[1745829300167,23.32,151.41,151.31,27.2251]
[1745829300369,6.6058,151.34,151.31,29.9264]
[1745829300563,23.32,151.37,151.31,29.9264]
[1745829300764,23.32,151.37,151.31,6.6064]
[1745829301165,6.6057,151.34,151.31,6.6064]
[1745829302266,4.49189212,151.33,151.31,6.6064]
[1745829302466,6.6057,151.34,151.31,6.6064]
[1745829302768,4.49189253,151.33,151.31,6.6064]
[1745829302968,6.6057,151.34,151.31,6.6064]
[1745829303163,4.49188243,151.33,151.31,6.6064]
[1745829303358,6.606,151.33,151.3,6.607]
[1745829303563,4.49135264,151.32,151.3,6.607]
[1745829303866,6.6057,151.34,151.3,6.607]
[1745829304058,4.49157673,151.33,151.3,6.607]
[1745829304258,4.49157673,151.32,151.3,6.607]
[1745829304463,6.6059,151.33,151.29,6.6074]
[1745829304766,4.49089913,151.32,151.28,23.32]
[1745829304960,11.33380148,151.36,151.3,6.607]
[1745829304961,6.6057,151.34,151.3,6.607]
[1745829305166,4.49086713,151.33,151.3,6.607]
[1745829305363,4.49086713,151.32,151.3,6.607]
[1745829305560,6.6057,151.34,151.3,6.607]
[1745829305759,4.49017394,151.33,151.3,6.607]
[1745829305968,4.49017394,151.32,151.3,6.607]
[1745829306170,6.6057,151.34,151.3,6.607]
[1745829306369,4.48957199,151.33,151.3,6.607]
[1745829306565,4.48957199,151.32,151.3,6.607]
[1745829306766,6.606,151.33,151.3,6.607]
[1745829306966,4.48957198,151.32,151.3,6.607]
[1745829307168,11.33380148,151.36,151.3,6.607]
[1745829307369,6.6057,151.34,151.3,6.607]
[1745829307570,4.48906879,151.33,151.31,6.6067]
[1745829307771,6.6057,151.34,151.31,6.6067]
[1745829307966,4.48906879,151.33,151.31,6.6067]
[1745829308169,4.48906879,151.32,151.31,6.6067]
[1745829308772,6.6057,151.34,151.31,6.6067]
[1745829308972,4.48896667,151.33,151.31,6.6067]
[1745829309174,6.6057,151.34,151.31,6.6067]
[1745829309471,4.488421,151.33,151.31,6.6067]
[1745829309662,6.6057,151.34,151.31,6.6067]
[1745829309863,4.48842605,151.33,151.31,6.6067]
[1745829310175,6.6053,151.35,151.32,6.6063]
[1745829310475,4.48815222,151.34,151.32,6.6063]
[1745829310667,4.48815222,151.33,151.32,6.6063]
[1745829312572,6.6049,151.36,151.33,6.6059]
[1745829312773,4.48724401,151.35,151.33,6.6059]
[1745829312971,4.48724401,151.34,151.33,6.6059]
[1745829314073,4.48724401,151.34,151.32,6.6061]
[1745829314275,4.48724401,151.33,151.32,6.6061]
[1745829327478,6.6047,151.36,151.34,6.6054]
[1745829327680,4.4846075,151.35,151.29,11.33380148]
[1745829327879,4.4846075,151.34,151.29,11.33380148]
[1745829328078,4.4846075,151.33,151.29,11.33380148]
[1745829328279,6.6048,151.36,151.34,6.6054]
[1745829328480,4.48523186,151.35,151.34,6.6054]
[1745829330883,23.32,151.4,151.33,11.33380148]
[1745829331179,4.48598646,151.39,151.35,11.33380148]
[1745829331384,4.48598646,151.38,151.37,6.6042]
[1745829332083,31.87591,151.43,151.37,11.33380148]
[1745829332478,31.87591,151.43,151.41,6.6022]
[1745829333578,38.47751,151.43,151.4,6.6027]
[1745829334179,6.6021,151.42,151.39,6.6031]
[1745829334484,31.87591,151.43,151.37,13.34050148]
[1745829334983,38.47761,151.43,151.37,13.34050148]
[1745829335584,38.47761,151.43,151.4,6.6025]
[1745829335882,31.87591,151.43,151.4,6.6025]
[1745829336583,38.47771,151.43,151.4,6.6025]
[1745829336777,31.87591,151.43,151.4,6.6025]
[1745829337485,38.47761,151.43,151.4,6.6025]
[1745829338982,31.87591,151.43,151.39,6.6031]
[1745829339383,31.87591,151.43,151.37,2.0067]
[1745829339582,6.6023,151.42,151.4,6.6026]
[1745829340181,38.47771,151.43,151.4,6.6026]
[1745829340381,38.47771,151.43,151.41,6.6024]
[1745829341383,31.87591,151.43,151.41,6.6024]
[1745829341984,31.87591,151.43,151.42,6.602]
[1745829343684,31.87591,151.43,151.41,6.6022]
[1745829344485,38.47751,151.43,151.41,6.6022]
[1745829345488,31.87591,151.43,151.41,6.6022]
[1745829346585,31.87591,151.43,151.42,6.602]
[1745829347285,31.87591,151.43,151.41,6.6023]
[1745829347482,31.87591,151.43,151.38,1.9578]
[1745829347887,31.87591,151.43,151.42,6.602]
[1745829349387,31.87591,151.43,151.41,6.6022]
[1745829349687,31.87591,151.43,151.38,1.9578]
[1745829350489,31.87591,151.43,151.42,6.602]
[1745829356689,31.87591,151.43,151.41,6.6022]
[1745829357794,31.87591,151.43,151.42,6.602]
[1745829358296,31.87591,151.43,151.41,6.6022]
[1745829358799,38.47751,151.43,151.41,6.6022]
[1745829359997,38.47751,151.43,151.4,29.9026]
[1745829360399,6.6023,151.42,151.4,29.9026]
[1745829360700,6.6023,151.42,151.4,6.6026]
[1745829361596,6.6023,151.42,151.39,6.6031]
[1745829361793,6.6025,151.41,151.39,6.6031]
[1745829362801,6.6022,151.42,151.39,6.6031]
[1745829364006,31.87591,151.43,151.37,23.3]
[1745829364007,31.87591,151.43,151.37,34.63380148]
[1745829364502,31.87591,151.43,151.42,6.602]
[1745829366003,31.87591,151.43,151.41,23.3]
[1745829366403,31.87591,151.43,151.38,23.3]
[1745829367100,31.87591,151.43,151.41,6.6021]
[1745829367301,31.87591,151.43,151.39,11.33380148]
[1745829367604,31.87591,151.43,151.42,6.602]
[1745829371913,31.87591,151.43,151.42,29.902]
[1745829376018,31.87591,151.43,151.42,6.602]
[1745829377618,6.6014,151.44,151.42,6.602]
[1745829378115,6.6009,151.45,151.42,6.602]
[1745829378420,6.6009,151.45,151.43,6.6015]
[1745829378717,17.93420148,151.46,151.39,23.3]
[1745829378920,23.3,151.48,151.39,23.3]
[1745829378921,34.63380148,151.48,151.44,6.6011]
[1745829380624,6.5999,151.47,151.44,6.6011]
[1745829380926,34.63380148,151.48,151.44,6.6011]
[1745829382124,6.6004,151.46,151.44,6.6011]
[1745829384425,6.6,151.47,151.45,6.6006]
[1745829385326,6.6003,151.46,151.44,6.6009]
[1745829385626,34.63380148,151.48,151.44,6.6009]
[1745829385821,6.6001,151.47,151.44,6.6009]
[1745829386627,6.6001,151.47,151.45,6.6006]
[1745829387934,6.6001,151.47,151.44,6.6009]
[1745829388126,6.6001,151.47,151.4,1.9321]
[1745829389331,6.6001,151.47,151.44,6.6008]
[1745829389625,6.6002,151.46,151.44,6.6008]
[1745829390228,6.6,151.47,151.45,6.6007]
[1745829393234,6.6002,151.46,151.44,6.6009]
[1745829394734,6.6,151.47,151.45,6.6007]
[1745829395234,11.33380148,151.48,151.4,1.9321]
[1745829395935,6.6003,151.46,151.4,1.9321]
[1745829396435,6.6007,151.45,151.43,6.6014]
[1745829399240,6.6005,151.46,151.44,6.6011]
[1745829401738,6.6001,151.47,151.44,6.6011]
[1745829401939,6.6001,151.47,151.45,6.6007]
[1745829402138,2.0219,151.49,151.45,6.6007]
[1745829402441,6.5998,151.47,151.45,6.6007]
[1745829402737,6.5998,151.47,151.43,23.3]
[1745829402941,6.5998,151.47,151.44,6.6009]
[1745829403542,6.6003,151.46,151.44,6.6009]
[1745829404044,6.6,151.47,151.44,6.6009]
[1745829405039,6.6,151.47,151.45,6.6006]
[1745829405844,6.6,151.47,151.44,6.6009]
[1745829407345,6.6,151.47,151.45,6.6006]
[1745829407542,7.25320956,151.46,151.43,23.3]
[1745829407845,7.25320956,151.46,151.44,6.6009]
[1745829408348,7.25320956,151.46,151.45,6.6007]
[1745829408545,71.27025956,151.51,151.45,7.25320956]
[1745829408949,7.25320956,151.49,151.48,6.5993]
[1745829409842,70.61535,151.51,151.45,7.25320956]
[1745829409843,7.25320956,151.5,151.45,7.25320956]
[1745829410248,7.25320956,151.5,151.48,6.5992]
[1745829411449,70.61535,151.51,151.48,6.5992]
[1745829417554,6.5985,151.5,151.48,6.5992]
[1745829417755,64.01705,151.51,151.46,6.5998]
[1745829417956,64.01705,151.51,151.43,34.62782166]
[1745829418256,6.5991,151.49,151.43,34.62782166]
[1745829419058,6.5991,151.49,151.46,6.5999]
[1745829420657,6.5991,151.49,151.47,6.5997]
[1745829421057,6.5991,151.49,151.43,34.62782166]
[1745829422158,6.5991,151.49,151.47,6.5996]
[1745829422662,6.5994,151.48,151.43,34.62782166]
[1745829422853,6.5994,151.48,151.46,6.6]
[1745829423158,64.01705,151.51,151.43,34.62782166]
[1745829423360,6.5991,151.49,151.47,6.5998]
[1745829424061,64.01705,151.51,151.43,23.3]
[1745829424360,11.32782166,151.5,151.43,23.3]
[1745829424555,6.5991,151.49,151.46,6.5999]
[1745829424862,6.5991,151.49,151.41,11.32782166]
[1745829425055,11.32782166,151.5,151.42,23.3]
[1745829425961,6.5991,151.49,151.42,23.3]
[1745829427066,6.5994,151.48,151.46,6.6]
[1745829427266,11.32782166,151.5,151.43,23.3]
[1745829427769,11.32782166,151.48,151.43,23.3]
[1745829427963,11.32782166,151.48,151.4,25.2321]
[1745829429167,6.6007,151.45,151.42,6.6018]
[1745829429670,6.6007,151.45,151.4,25.2321]
[1745829430468,6.6012,151.44,151.4,25.2321]
[1745829430667,23.3,151.47,151.41,6.6023]
[1745829430864,11.32782166,151.46,151.41,6.6023]
[1745829431769,11.32782166,151.46,151.4,29.9028]
[1745829432069,15.32172166,151.46,151.4,23.3]
[1745829432369,15.32172166,151.46,151.41,6.6023]
[1745829432969,6.6018,151.43,151.41,6.6023]
[1745829433667,15.32172166,151.46,151.38,6.6033]
[1745829433867,11.32782166,151.44,151.35,34.62782166]
[1745829434566,11.32782166,151.44,151.38,6.6035]
[1745829434869,6.6027,151.41,151.38,6.6035]
[1745829437068,6.6029,151.4,151.38,6.6035]
[1745829437269,6.6029,151.4,151.37,6.604]
[1745829437468,6.6029,151.4,151.35,34.62782166]
[1745829437668,6.6029,151.4,151.37,6.6038]
[1745829439173,6.6029,151.4,151.35,34.62782166]
[1745829439174,6.6029,151.4,151.38,6.6036]
[1745829439473,6.6027,151.41,151.38,6.6036]
[1745829439773,23.3,151.43,151.38,6.6036]
[1745829441174,6.6029,151.4,151.38,6.6036]
[1745829441474,23.3,151.43,151.38,6.6036]
[1745829441877,6.6027,151.41,151.38,6.6036]
[1745829442073,23.3,151.43,151.37,11.32782166]
[1745829442273,38.62172166,151.46,151.37,11.32782166]
[1745829442473,6.6019,151.43,151.37,11.32782166]
[1745829442675,6.6019,151.43,151.41,6.6024]
[1745829444276,6.6019,151.43,151.4,6.6027]
[1745829445978,6.602,151.42,151.4,6.6027]
[1745829446178,6.602,151.42,151.39,6.6031]
[1745829446682,6.602,151.42,151.4,6.6027]
[1745829447879,6.6018,151.43,151.4,6.6027]
[1745829448083,6.6018,151.43,151.37,11.32782166]
[1745829448381,6.6022,151.42,151.37,11.32782166]
[1745829449883,6.6022,151.42,151.4,6.6027]
[1745829450382,6.6018,151.43,151.41,6.6024]
[1745829450586,38.62172166,151.46,151.41,6.6024]
[1745829451084,38.62172166,151.46,151.4,6.6026]
[1745829451780,11.32782166,151.44,151.35,23.3]
[1745829451982,6.6035,151.39,151.35,23.3]
[1745829452478,34.62782166,151.42,151.35,29.9048]
[1745829452674,6.604,151.38,151.35,29.9048]
[1745829453083,6.6043,151.37,151.35,23.3]
[1745829454483,6.6043,151.37,151.35,29.905]
[1745829455282,6.6039,151.38,151.35,29.905]
[1745829455781,6.6039,151.38,151.36,6.6046]
[1745829455979,23.3,151.42,151.36,6.6046]
[1745829456184,34.62782166,151.42,151.35,23.3]
[1745829456384,23.3,151.42,151.37,6.6039]
[1745829456585,11.32782166,151.44,151.36,11.32782166]
[1745829456887,23.3,151.43,151.41,6.6022]
[1745829457086,6.6013,151.44,151.41,6.6022]
[1745829458982,6.6016,151.43,151.4,6.6026]
[1745829460285,6.6013,151.44,151.41,6.6024]
[1745829460791,6.6013,151.44,151.4,6.6025]
[1745829460987,6.6013,151.44,151.38,11.32782166]
[1745829461289,6.6013,151.44,151.41,6.602]
[1745829462793,6.6015,151.43,151.41,6.602]
[1745829463388,6.6013,151.44,151.41,6.602]
[1745829463692,6.6013,151.44,151.42,6.6019]
[1745829465694,6.6013,151.44,151.41,6.6022]
[1745829465890,6.6016,151.43,151.41,6.6022]
[1745829466192,15.32172166,151.46,151.41,6.6022]
[1745829466392,6.6014,151.44,151.41,6.6022]
[1745829466695,15.32172166,151.46,151.35,23.3]
[1745829466895,6.6018,151.43,151.37,11.32782166]
[1745829467190,11.32782166,151.44,151.38,6.6035]
[1745829467389,6.6027,151.41,151.38,6.6035]
[1745829467595,11.32782166,151.44,151.38,6.6035]
[1745829467790,23.3,151.43,151.38,6.6035]
[1745829467993,6.6028,151.41,151.38,6.6035]
[1745829468193,23.3,151.43,151.38,6.6035]
[1745829468390,6.6027,151.41,151.38,6.6035]
[1745829473203,6.6029,151.4,151.38,6.6035]
[1745829474798,23.3,151.43,151.35,34.62782166]
[1745829475104,27.2939,151.46,151.37,11.32782166]
[1745829475404,6.6017,151.43,151.4,6.6026]
[1745829476204,27.2939,151.46,151.39,6.6032]
[1745829477004,27.2939,151.46,151.37,11.32782166]
[1745829477005,6.6017,151.43,151.4,6.6028]
[1745829477605,6.602,151.42,151.4,6.6028]
[1745829477795,6.602,151.42,151.39,6.6031]
[1745829477996,27.2939,151.46,151.37,11.32782166]
[1745829478202,11.32782166,151.42,151.35,23.3]
[1745829478405,34.62782166,151.42,151.35,23.3]
[1745829478903,6.6035,151.39,151.35,23.3]
[1745829479508,6.6035,151.39,151.36,6.6046]
[1745829483213,34.62782166,151.42,151.35,29.9048]
[1745829483408,11.32782166,151.4,151.32,36.66512166]
[1745829484415,6.604,151.38,151.35,6.6048]
[1745829487106,6.604,151.38,151.36,6.6045]
[1745829487310,6.6031,151.4,151.34,11.32782166]
[1745829487917,6.6033,151.39,151.37,6.6039]
[1745829489719,6.6031,151.4,151.37,6.6039]
[1745829490121,23.3,151.41,151.37,6.6039]
[1745829490625,6.6036,151.39,151.37,6.6039]
[1745829490925,11.32782166,151.4,151.32,36.66512166]
[1745829491124,6.6044,151.37,151.32,36.66512166]
[1745829491324,6.6044,151.37,151.34,6.6053]
[1745829492327,6.6046,151.36,151.34,6.6053]
[1745829492827,6.6046,151.36,151.33,6.6058]
[1745829493019,6.6046,151.36,151.32,36.66512166]
[1745829493020,6.6044,151.37,151.32,36.66512166]
[1745829493727,6.6044,151.37,151.34,6.6053]
[1745829494027,6.6045,151.37,151.34,6.6053]
[1745829494822,6.6045,151.37,151.32,36.66512166]
[1745829495428,6.6045,151.37,151.34,6.6051]
[1745829496221,6.6047,151.36,151.34,6.6051]
[1745829496426,6.6047,151.36,151.33,6.6057]
[1745829496830,6.6047,151.36,151.32,36.66512166]
[1745829497125,27.2138,151.41,151.32,36.66512166]
[1745829497829,11.32782166,151.38,151.29,27.4627]
[1745829498130,6.6055,151.35,151.31,6.6066]
[1745829499130,6.6056,151.34,151.31,6.6066]
[1745829499326,6.6056,151.34,151.27,11.32782166]
[1745829499327,11.32782166,151.36,151.24,1.15009006]
[1745829499530,34.66782166,151.36,151.28,11.32782166]
[1745829499732,23.34,151.36,151.28,11.32782166]
[1745829499933,6.6053,151.35,151.31,6.6065]
[1745829500424,23.34,151.36,151.29,25.3361]
[1745829501232,6.6062,151.33,151.3,6.6071]
[1745829501632,6.6062,151.33,151.29,25.3361]
[1745829501933,6.6062,151.33,151.3,6.6072]
[1745829502233,6.6057,151.34,151.3,6.6072]
[1745829502432,23.34,151.36,151.3,6.6072]
[1745829502834,6.6058,151.34,151.3,6.6072]
[1745829503534,6.6058,151.34,151.31,6.6068]
[1745829504037,6.606,151.33,151.29,25.3361]
[1745829505331,6.606,151.33,151.31,6.6068]
[1745829505537,6.6056,151.34,151.29,25.3361]
[1745829505836,23.34,151.36,151.3,11.32782166]
[1745829506237,29.9449,151.36,151.34,6.6055]
[1745829507239,29.9449,151.36,151.33,6.6057]
[1745829508444,29.9449,151.36,151.34,6.6053]
[1745829508644,23.34,151.36,151.3,11.32782166]
[1745829508843,34.66782166,151.39,151.3,15.22242166]
[1745829509842,6.6045,151.37,151.34,6.6051]
[1745829510043,34.66782166,151.39,151.3,15.22242166]
[1745829510044,23.34,151.39,151.32,11.32782166]
[1745829511143,23.34,151.39,151.33,23.34]
[1745829511442,6.6037,151.38,151.36,6.6044]
[1745829511845,29.9435,151.39,151.36,6.6044]
[1745829512046,23.34,151.39,151.36,6.6044]
[1745829512946,29.9435,151.39,151.36,6.6044]
[1745829513649,23.34,151.39,151.37,6.6041]
[1745829513852,6.6031,151.4,151.37,6.6041]
[1745829514449,6.6026,151.41,151.38,6.6036]
[1745829514648,23.34,151.42,151.34,13.36842166]
[1745829514849,6.6031,151.4,151.37,6.6038]
[1745829515544,6.6033,151.39,151.37,6.6038]
[1745829515950,11.32782166,151.41,151.34,2.0406]
[1745829516451,11.32782166,151.41,151.34,6.6052]
[1745829516641,15.16882166,151.41,151.33,23.34]
[1745829517045,15.16882166,151.41,151.35,6.605]
[1745829517247,6.6041,151.38,151.35,6.605]
[1745829518253,6.6042,151.37,151.35,6.605]
[1745829518855,6.6046,151.36,151.33,23.34]
[1745829519452,6.6046,151.36,151.33,29.9457]
[1745829520154,6.6046,151.36,151.34,6.6054]
[1745829520448,15.16882166,151.41,151.33,23.34]
[1745829520654,23.34,151.42,151.37,6.604]
[1745829520849,6.6028,151.41,151.37,6.604]
[1745829521050,6.6028,151.41,151.34,34.66782166]
[1745829521250,23.34,151.42,151.37,6.6039]
[1745829521455,6.6026,151.41,151.34,34.66782166]
[1745829522253,6.6026,151.41,151.38,6.6035]
[1745829522754,29.9422,151.42,151.38,6.6035]
[1745829522950,23.34,151.42,151.38,6.6035]
[1745829523254,23.34,151.42,151.37,6.604]
[1745829524057,6.6031,151.4,151.37,6.604]
[1745829526357,6.6031,151.4,151.35,2.0579]
[1745829526756,6.6033,151.39,151.35,2.0579]
[1745829526953,6.6033,151.39,151.37,6.6042]
[1745829529256,23.34,151.42,151.36,6.6044]
[1745829529462,11.32782166,151.41,151.36,6.6044]
[1745829529760,6.6036,151.39,151.36,6.6044]
[1745829532957,6.6036,151.39,151.37,6.6041]
[1745829533166,6.6036,151.39,151.35,2.0579]
[1745829533562,6.6036,151.39,151.36,6.6043]
[1745829534061,6.6037,151.38,151.36,6.6043]
[1745829534963,6.6035,151.39,151.36,6.6043]
[1745829535965,6.6035,151.39,151.37,6.6041]
[1745829536165,6.6035,151.39,151.35,2.0579]
[1745829536564,6.6035,151.39,151.36,6.6044]
[1745829539169,6.6035,151.39,151.37,6.604]
[1745829539562,6.6031,151.4,151.37,6.604]
[1745829539763,11.32782166,151.41,151.35,2.0579]
[1745829539967,11.32782166,151.41,151.34,23.34]
[1745829540567,6.6038,151.38,151.35,6.6048]
[1745829540767,6.6038,151.38,151.34,23.34]
[1745829541068,6.6038,151.38,151.35,6.6048]
[1745829541272,6.6035,151.39,151.34,23.34]
[1745829541566,6.6035,151.39,151.36,6.6044]
[1745829543969,6.6035,151.39,151.37,6.6041]
[1745829544470,6.6035,151.39,151.34,23.34]
[1745829544471,6.6035,151.39,151.36,6.6045]
[1745829545974,6.6035,151.39,151.37,6.6041]
[1745829546481,6.6035,151.39,151.34,23.34]
[1745829546974,6.6035,151.39,151.36,6.6044]
[1745829547874,6.6031,151.4,151.37,6.6041]
[1745829548269,11.32782166,151.41,151.37,6.6041]
[1745829548475,6.6031,151.4,151.34,34.66782166]
[1745829548674,23.34,151.42,151.34,34.66782166]
[1745829549075,6.6026,151.41,151.34,34.66782166]
[1745829549374,23.34,151.42,151.34,34.66782166]
[1745829549975,6.603,151.4,151.34,34.66782166]
[1745829550876,6.603,151.4,151.37,6.604]
[1745829551974,6.603,151.4,151.38,6.6036]
[1745829552280,6.6033,151.39,151.34,34.66782166]
[1745829552980,6.6033,151.39,151.37,6.6039]
[1745829553580,23.34,151.42,151.34,23.34]
[1745829553880,11.32782166,151.41,151.34,23.34]
[1745829554277,6.604,151.38,151.34,23.34]
[1745829554484,6.604,151.38,151.36,6.6046]
[1745829554677,11.32782166,151.41,151.34,23.34]
[1745829556283,6.6035,151.39,151.37,6.6042]
[1745829556887,6.6039,151.38,151.36,6.6045]
[1745829558786,6.6034,151.39,151.36,6.6045]
[1745829559085,11.32782166,151.41,151.36,6.6045]
[1745829559386,6.6037,151.39,151.36,6.6045]
[1745829559986,6.6037,151.39,151.37,6.6041]
[1745829561483,13.86330403,151.39,151.37,6.6041]
[1745829562493,23.3,151.38,151.3,3.8946]
[1745829562693,7.25960403,151.33,151.3,3.8946]
[1745829563391,27.2521,151.38,151.28,7.25960403]
[1745829563392,7.25960403,151.32,151.28,7.25960403]
[1745829563593,7.25960403,151.32,151.27,7.25960403]
[1745829563894,7.25960403,151.31,151.27,7.25960403]
[1745829564192,13.86650403,151.31,151.28,6.6078]
[1745829564593,7.25960403,151.31,151.27,7.25960403]
[1745829564794,13.86620403,151.32,151.29,6.6075]
[1745829565490,6.6066,151.32,151.29,6.6075]
[1745829566291,34.65381088,151.34,151.26,23.3]
[1745829567094,6.607,151.31,151.28,6.6079]
[1745829567297,34.65381088,151.34,151.26,23.3]
[1745829567690,11.35381088,151.31,151.26,23.3]
[1745829567894,11.35381088,151.31,151.23,23.3]
[1745829568294,11.35381088,151.29,151.23,23.3]
[1745829568589,34.65381088,151.29,151.23,23.3]
[1745829568888,34.65381088,151.29,151.24,6.6096]
[1745829569799,6.6084,151.28,151.25,6.6093]
[1745829570297,29.9284,151.28,151.25,6.6091]
[1745829570491,29.9284,151.28,151.21,17.23861088]
[1745829570891,29.9284,151.28,151.25,6.609]
[1745829571191,6.6086,151.27,151.25,6.609]
[1745829571397,6.6086,151.27,151.24,6.6096]
[1745829576096,6.6086,151.27,151.25,6.6093]
[1745829576793,6.6086,151.27,151.24,6.6096]
[1745829576993,11.35381088,151.27,151.21,5.8848]
[1745829577492,6.6092,151.26,151.23,6.61]
[1745829577693,6.6092,151.26,151.21,5.8848]
[1745829580900,17.96251088,151.27,151.24,6.6096]
[1745829581102,11.35381088,151.27,151.24,6.6096]
[1745829582303,6.6091,151.26,151.24,6.6096]
[1745829583307,17.96251088,151.27,151.24,6.6096]
[1745829583707,11.35381088,151.27,151.24,6.6096]
[1745829584307,6.609,151.26,151.24,6.6096]
[1745829587414,6.609,151.26,151.23,6.6099]
[1745829588210,6.6096,151.25,151.23,6.6099]
[1745829591417,6.6098,151.24,151.22,6.6105]
[1745829592013,3.9194,151.33,151.2,23.32]
[1745829592213,11.35381088,151.3,151.2,34.67381088]
[1745829592517,6.6083,151.28,151.25,6.6092]
[1745829593314,6.6083,151.28,151.26,6.6089]
[1745829595119,6.6079,151.29,151.26,6.6089]
[1745829595317,6.6079,151.29,151.27,6.6085]
[1745829597016,6.6074,151.3,151.22,13.29091088]
[1745829597523,6.6074,151.3,151.28,6.608]
[1745829597720,34.67381088,151.32,151.24,34.67381088]
[1745829597721,6.6071,151.31,151.24,34.67381088]
[1745829598021,23.32,151.32,151.24,34.67381088]
[1745829598223,23.32,151.32,151.26,11.35381088]
[1745829598525,23.32,151.36,151.28,11.35381088]
[1745829598724,23.32,151.36,151.28,34.67381088]
[1745829598925,6.6056,151.34,151.32,6.6062]
[1745829599526,6.6056,151.34,151.31,6.6067]
[1745829599922,11.35381088,151.35,151.28,23.32]
[1745829600126,11.35381088,151.33,151.28,29.9278]
[1745829600827,6.6066,151.32,151.29,6.6076]
[1745829601227,6.6055,151.34,151.32,6.6063]
[1745829601428,11.35381088,151.35,151.28,23.32]
[1745829601927,34.67381088,151.36,151.28,23.32]
[1745829602129,23.32,151.36,151.3,11.35381088]
[1745829602529,6.6051,151.35,151.32,6.606]
[1745829602733,6.6051,151.35,151.3,11.35381088]
[1745829603531,6.6051,151.35,151.32,6.6061]
[1745829603930,6.6055,151.34,151.32,6.6061]
[1745829604631,6.6052,151.35,151.32,6.6061]
[1745829606035,6.6052,151.35,151.33,6.6058]
[1745829606429,6.6052,151.35,151.28,36.66201088]
[1745829606733,6.6052,151.35,151.32,6.6061]
[1745829607232,6.6052,151.35,151.28,36.66201088]
[1745829607233,6.6052,151.35,151.33,6.6059]
[1745829607533,6.6052,151.35,151.28,36.66201088]
[1745829608636,6.6052,151.35,151.32,6.606]
[1745829610537,6.6052,151.35,151.33,6.6058]
[1745829610935,6.6052,151.35,151.28,36.66201088]
[1745829611637,6.6052,151.35,151.32,6.6061]
[1745829612345,6.6057,151.34,151.32,6.6061]
[1745829612639,6.6057,151.34,151.31,6.6066]
[1745829612838,23.32,151.36,151.31,6.6066]
[1745829613039,6.6059,151.34,151.31,6.6066]
[1745829615037,23.32,151.36,151.31,6.6066]
[1745829615842,34.67381088,151.36,151.31,6.6066]
[1745829616040,11.35381088,151.34,151.28,25.3082]
[1745829616638,11.35381088,151.34,151.28,23.32]
[1745829616837,6.607,151.31,151.28,23.32]
[1745829617143,6.607,151.31,151.28,29.9278]
[1745829617541,6.6075,151.3,151.28,6.6078]
[1745829617841,6.6075,151.3,151.25,23.3]
[1745829618340,11.35381088,151.32,151.25,23.3]
[1745829619040,11.35381088,151.34,151.25,23.3]
[1745829619441,6.6065,151.32,151.29,6.6074]
[1745829619739,6.6065,151.32,151.25,23.3]
[1745829619938,6.6065,151.32,151.29,6.6072]